fUST/lending_fUST_20240501
["ID","MTS","AMOUNT","RATE_DAILY","PERIOD"]
[325180259,1714551067210,-500.0,0.00060273,120]
[325180260,1714551067224,-501.04,0.00060273,120]
[325180261,1714551067238,-500.0,0.00060273,120]
[325180262,1714551067253,-500.0,0.00060273,120]
[325180263,1714551067365,-500.0,0.00060273,120]
[325180264,1714551067378,-500.0,0.00060273,120]
[325180265,1714551067388,-500.0,0.00060273,120]
[325180266,1714551067397,-8117.03,0.00060273,120]
[325180267,1714551067407,-753.05,0.00060273,120]
[325180268,1714551067417,-500.0,0.00060273,120]
[325180269,1714551067428,-527.46554075,0.00060273,120]
[325180270,1714551067444,-500.0,0.00060273,120]
[325180271,1714551067453,-500.0,0.00060273,120]
[325180272,1714551067462,-500.0,0.00060273,120]
[325180273,1714551067472,-500.0,0.00060273,120]
[325180274,1714551067482,-500.0,0.00060273,120]
[325180275,1714551067491,-500.0,0.00060273,120]
[325180276,1714551067501,-500.0,0.00060273,120]
[325180277,1714551067510,-500.0,0.00060273,120]
[325180278,1714551067520,-500.0,0.00060273,120]
[325180279,1714551067530,-3650.14,0.00060273,120]
[325180280,1714551067540,-1110.2,0.00060273,120]
[325180281,1714551067549,-500.0,0.00060273,120]
[325180282,1714551067559,-500.0,0.00060273,120]
[325180283,1714551067568,-500.0,0.00060273,120]
[325180284,1714551067578,-500.0,0.00060273,120]
[325180285,1714551067588,-500.0,0.00060273,120]
[325180286,1714551067598,-500.0,0.00060273,120]
[325180287,1714551067608,-500.0,0.00060273,120]
[325180288,1714551067617,-1002.97,0.00060273,120]
[325180289,1714551067626,-500.0,0.00060273,120]
[325180290,1714551067636,-500.0,0.00060273,120]
[325180291,1714551067646,-500.0,0.00060273,120]
[325180292,1714551067656,-222.05634145,0.00060273,120]
[325180293,1714551067666,-500.0,0.00060273,120]
[325180294,1714551067677,-500.0,0.00060273,120]
[325180295,1714551067690,-500.0,0.00060273,120]
[325180296,1714551067701,-500.0,0.00060273,120]
[325180297,1714551067710,-4739.82,0.00060273,120]
[325180298,1714551067721,-500.0,0.00060273,120]
[325180299,1714551067731,-500.0,0.00060273,120]
[325180300,1714551067742,-557.95691212,0.00060273,120]
[325180301,1714551067752,-500.0,0.00060273,120]
[325180302,1714551067762,-500.0,0.00060273,120]
[325180303,1714551067772,-500.0,0.00060273,120]
[325180304,1714551067782,-500.0,0.00060273,120]
[325180305,1714551067794,-500.0,0.00060273,120]
[325180306,1714551067804,-500.0,0.00060273,120]
[325180307,1714551067815,-500.0,0.00060273,120]
[325180308,1714551067824,-500.0,0.00060273,120]
[325180309,1714551067833,-500.0,0.00060273,120]
[325180310,1714551067843,-1930.84,0.00060273,120]
[325180311,1714551067852,-500.0,0.00060273,120]
[325180312,1714551067878,-500.0,0.00060273,120]
[325180313,1714551067886,-1194.01,0.00060273,120]
[325180314,1714551067896,-500.0,0.00060273,120]
[325180315,1714551067906,-500.0,0.00060273,120]
[325180316,1714551067916,-500.0,0.00060273,60]
[325180317,1714551067925,-500.0,0.00060273,120]
[325180318,1714551067937,-500.0,0.00060273,120]
[325180319,1714551067947,-500.0,0.00060273,120]
[325180320,1714551067957,-500.0,0.00060273,120]
[325180321,1714551067966,-314.27036028,0.00060273,120]
[325180322,1714551067976,-500.0,0.00060273,120]
[325180323,1714551067985,-500.0,0.00060273,120]
[325180324,1714551067994,-500.0,0.00060273,120]
[325180325,1714551068003,-500.0,0.00060273,120]
[325180326,1714551068012,-1311.94,0.00060273,120]
[325180327,1714551068022,-500.0,0.00060273,120]
[325180328,1714551068031,-843.84,0.00060273,120]
[325180329,1714551068040,-500.0,0.00060273,120]
[325180330,1714551068049,-500.0,0.00060273,120]
[325180331,1714551068058,-500.0,0.00060273,120]
[325180332,1714551068068,-500.0,0.00060273,120]
[325180333,1714551068077,-500.0,0.00060273,120]
[325180334,1714551068086,-500.0,0.00060273,120]
[325180335,1714551068095,-500.0,0.00060273,120]
[325180336,1714551068104,-500.0,0.00060273,120]
[325180337,1714551068114,-500.0,0.00060273,120]
[325180338,1714551068124,-500.0,0.00060273,120]
[325180339,1714551068133,-500.0,0.00060273,120]
[325180340,1714551068142,-500.0,0.00060273,120]
[325180341,1714551068151,-500.0,0.00060273,120]
[325180342,1714551068161,-500.0,0.00060273,120]
[325180343,1714551068170,-1833.01,0.00060273,120]
[325180344,1714551068183,-500.0,0.00060273,120]
[325180345,1714551068192,-500.0,0.00060273,120]
[325180346,1714551068201,-500.0,0.00060273,120]
[325180347,1714551068210,-500.0,0.00060273,120]
[325180348,1714551068219,-500.0,0.00060273,120]
[325180349,1714551068228,-500.0,0.00060273,120]
[325180350,1714551068238,-500.0,0.00060273,120]
[325180351,1714551068247,-500.0,0.00060273,120]
[325180352,1714551068256,-500.0,0.00060273,120]
[325180353,1714551068265,-8858.35,0.00060273,120]
[325180354,1714551068274,-500.0,0.00060273,120]
[325180355,1714551068283,-3795.82,0.00060273,120]
[325180356,1714551068292,-500.0,0.00060273,120]
[325180357,1714551068301,-500.0,0.00060273,120]
[325180358,1714551068310,-500.0,0.00060273,120]
[325180359,1714551068319,-500.0,0.00060273,120]
[325180360,1714551068328,-2186.1,0.00060273,120]
[325180361,1714551068337,-500.0,0.00060273,120]
[325180362,1714551068346,-516.10449329,0.00060273,120]
[325180363,1714551068355,-500.0,0.00060273,120]
[325180364,1714551068364,-500.0,0.00060273,120]
[325180365,1714551068374,-500.0,0.00060273,120]
[325180366,1714551068383,-529.02583533,0.00060273,120]
[325180367,1714551068392,-500.0,0.00060273,120]
[325180368,1714551068400,-500.0,0.00060273,60]
[325180369,1714551068409,-561.35397468,0.00060273,120]
[325180370,1714551068418,-13472.56,0.00060273,120]
[325180371,1714551068431,-500.0,0.00060273,120]
[325180372,1714551068440,-500.0,0.00060273,120]
[325180373,1714551068449,-18297.18,0.00060273,120]
[325180374,1714551068458,-500.0,0.00060273,120]
[325180375,1714551068467,-500.0,0.00060273,120]
[325180376,1714551068476,-500.0,0.00060273,120]
[325180377,1714551068485,-489.75932267,0.00060273,30]
[325180378,1714551068494,-500.0,0.00060273,120]
[325180379,1714551068503,-500.0,0.00060273,120]
[325180380,1714551068577,-833.3,0.00060273,21]
[325180381,1714551068587,-500.0,0.00060273,120]
[325180382,1714551068596,-500.0,0.00060273,120]
[325180383,1714551068606,-518.91,0.00060273,7]
[325180384,1714551068616,-500.0,0.00060273,120]
[325180385,1714551068625,-1015.92,0.00060273,120]
[325180386,1714551068635,-500.0,0.00060273,120]
[325180387,1714551068644,-500.0,0.00060273,120]
[325180388,1714551068653,-503.71462416,0.00060273,120]
[325180389,1714551068662,-500.0,0.00060273,120]
[325180390,1714551068672,-500.0,0.00060273,120]
[325180391,1714551068687,-595.28,0.00060273,120]
[325180392,1714551068696,-615.7474,0.00060602,2]
[325180393,1714551068708,-151.0,0.00060658,120]
[325180394,1714551068718,-1484.39,0.00060821,120]
[325180395,1714551068730,-10000.0,0.00061234,120]
[325180396,1714551068739,-151.0,0.0006126,120]
[325180397,1714551068751,-615.74739,0.00061351,2]
[325180398,1714551068760,-345.76981213,0.000616,120]
[325180399,1714551068770,-166.0,0.00061619,120]
[325180400,1714551068779,-1484.39,0.00061643,120]
[325180401,1714551068789,-1000.0,0.00061649,30]
[325180402,1714551068799,-151.0,0.00061863,120]
[325180403,1714551068808,-3000.0,0.0006191,10]
[325180404,1714551068818,-615.74739,0.00062099,2]
[325180405,1714551068827,-1000000.0,0.000622,120]
[325180406,1714551068836,-151.0,0.000622,120]
[325180407,1714551068846,-284.157297,0.000622,120]
[325180408,1714551068855,-284.157297,0.000622,120]
[325180409,1714551068863,-151.0,0.000622,120]
[325180410,1714551068872,-162.529464,0.000622,120]
[325180411,1714551068882,-151.0,0.000622,3]
[325180412,1714551068892,-701.315446,0.000622,120]
[325180413,1714551068901,-301.175704,0.000622,120]
[325180414,1714551068910,-701.315446,0.000622,120]
[325180415,1714551068919,-301.175704,0.000622,120]
[325180416,1714551068934,-274.403145,0.000622,120]
[325180417,1714551068944,-274.403145,0.000622,120]
[325180418,1714551068953,-470.15764,0.000622,120]
[325180419,1714551068963,-470.15764,0.000622,120]
[325180420,1714551068972,-151.0,0.000622,120]
[325180421,1714551068981,-334.842218,0.000622,120]
[325180422,1714551068990,-334.842218,0.000622,120]
[325180423,1714551069000,-4092.200555,0.000622,120]
[325180424,1714551069009,-4092.200555,0.000622,120]
[325180425,1714551069019,-229.384043,0.000622,120]
[325180426,1714551069029,-229.384043,0.000622,120]
[325180427,1714551069038,-151.0,0.000622,120]
[325180428,1714551069047,-228.446791,0.000622,120]
[325180429,1714551069056,-228.446791,0.000622,120]
[325180430,1714551069066,-1451.004861,0.000622,120]
[325180431,1714551069075,-1451.004861,0.000622,120]
[325180432,1714551069085,-424.90953,0.000622,120]
[325180433,1714551069094,-424.90953,0.000622,120]
[325180434,1714551069104,-6565.057165,0.000622,14]
[325180435,1714551069113,-6565.057165,0.000622,14]
[325180436,1714551069123,-251.613386,0.000622,120]
[325180437,1714551069132,-304.968756,0.000622,60]
[325180438,1714551069141,-251.613386,0.000622,120]
[325180439,1714551069150,-304.968756,0.000622,60]
[325180440,1714551069160,-294.868174,0.000622,120]
[325180441,1714551069169,-294.868174,0.000622,120]
[325180442,1714551069182,-151.0,0.000622,120]
[325180443,1714551069191,-180.805915,0.000622,120]
[325180444,1714551069200,-180.805915,0.000622,120]
[325180445,1714551069209,-1333.310725,0.000622,120]
[325180446,1714551069219,-1333.310725,0.000622,120]
[325180447,1714551069228,-151.0,0.000622,120]
[325180448,1714551069238,-1668.37392,0.000622,120]
[325180449,1714551069247,-1668.37392,0.000622,120]
[325180450,1714551069256,-1686.951195,0.000622,120]
[325180451,1714551069266,-1686.951195,0.000622,120]
[325180452,1714551069276,-1273.052323,0.000622,30]
[325180453,1714551069285,-5566.462389,0.000622,120]
[325180454,1714551069295,-153.928922,0.000622,120]
[325180455,1714551069303,-437.723155,0.000622,120]
[325180456,1714551069312,-5566.462389,0.000622,120]
[325180457,1714551069321,-1273.052323,0.000622,30]
[325180458,1714551069330,-437.723155,0.000622,120]
[325180459,1714551069340,-278.052754,0.000622,120]
[325180460,1714551069349,-278.052754,0.000622,120]
[325180461,1714551069359,-2324.106982,0.000622,120]
[325180462,1714551069369,-2324.106982,0.000622,120]
[325180463,1714551069378,-2376.416281,0.000622,120]
[325180464,1714551069388,-2376.416281,0.000622,120]
[325180465,1714551069398,-174.858695,0.000622,120]
[325180466,1714551069406,-174.858695,0.000622,120]
[325180467,1714551069416,-966.63722,0.000622,120]
[325180468,1714551069425,-966.63722,0.000622,120]
[325180469,1714551069440,-10000.0,0.00062345,120]
[325180470,1714551069450,-1484.39,0.00062465,120]
[325180471,1714551069459,-151.0,0.00062466,120]
[325180472,1714551069468,-615.74739,0.00062847,2]
[325180473,1714551069478,-1363.63102334,0.00063013,7]
[325180474,1714551069488,-2000.0,0.00063013,2]
[325180475,1714551069497,-500.0,0.00063013,120]
[325180476,1714551069507,-500.0,0.00063013,120]
[325180477,1714551069516,-500.0,0.00063013,120]
[325180478,1714551069525,-500.0,0.00063013,120]
[325180479,1714551069535,-680.26,0.00063013,120]
[325180480,1714551069544,-500.0,0.00063013,120]
[325180481,1714551069558,-500.0,0.00063013,120]
[325180482,1714551069567,-500.0,0.00063013,120]
[325180483,1714551069576,-523.75120667,0.00063013,120]
[325180484,1714551069585,-320.73534485,0.00063013,120]
[325180485,1714551069594,-501.17552555,0.00063013,120]
[325180486,1714551069603,-500.0,0.00063013,120]
[325180487,1714551069612,-500.0,0.00063013,120]
[325180488,1714551069688,-500.0,0.00063013,120]
[325180489,1714551069697,-500.0,0.00063013,120]
[325180490,1714551069712,-501.4482823,0.00063013,120]
[325180491,1714551069722,-501.33149807,0.00063013,120]
[325180492,1714551069732,-500.0,0.00063013,120]
[325180493,1714551069743,-500.0,0.00063013,120]
[325180494,1714551069753,-500.0,0.00063013,120]
[325180495,1714551069763,-500.0,0.00063013,120]
[325180496,1714551069773,-500.0,0.00063013,120]
[325180497,1714551069784,-500.0,0.00063013,120]
[325180498,1714551069795,-500.0,0.00063013,120]
[325180499,1714551069805,-500.0,0.00063013,120]
[325180500,1714551069815,-500.0,0.00063013,120]
[325180501,1714551069825,-500.0,0.00063013,120]
[325180502,1714551069836,-500.0,0.00063013,120]
[325180503,1714551069846,-500.0,0.00063013,120]
[325180504,1714551069857,-500.0,0.00063013,120]
[325180505,1714551069868,-641.62742066,0.00063013,120]
[325180506,1714551069879,-500.0,0.00063013,120]
[325180507,1714551069889,-501.14219273,0.00063013,120]
[325180508,1714551069899,-500.0,0.00063013,120]
[325180509,1714551069909,-500.0,0.00063013,120]
[325180510,1714551069919,-500.0,0.00063013,120]
[325180511,1714551069935,-500.0,0.00063013,120]
[325180512,1714551069945,-551.22032398,0.00063013,120]
[325180513,1714551069954,-500.0,0.00063013,120]
[325180514,1714551069963,-500.0,0.00063013,120]
[325180515,1714551069972,-500.0,0.00063013,120]
[325180516,1714551069982,-500.0,0.00063013,120]
[325180517,1714551069991,-500.0,0.00063013,120]
[325180518,1714551070000,-500.0,0.00063013,120]
[325180519,1714551070010,-500.0,0.00063013,120]
[325180520,1714551070019,-500.0,0.00063013,120]
[325180521,1714551070028,-500.0,0.00063013,120]
[325180522,1714551070038,-500.0,0.00063013,120]
[325180523,1714551070047,-500.0,0.00063013,120]
[325180524,1714551070056,-500.0,0.00063013,120]
[325180525,1714551070066,-500.0,0.00063013,120]
[325180526,1714551070075,-500.0,0.00063013,120]
[325180527,1714551070084,-500.0,0.00063013,120]
[325180528,1714551070093,-500.0,0.00063013,120]
[325180529,1714551070103,-500.0,0.00063013,120]
[325180530,1714551070112,-500.0,0.00063013,120]
[325180531,1714551070121,-500.0,0.00063013,120]
[325180532,1714551070130,-500.0,0.00063013,120]
[325180533,1714551070140,-271.99277122,0.00063013,120]
[325180534,1714551070149,-500.0,0.00063013,120]
[325180535,1714551070158,-168.83582934,0.00063013,120]
[325180536,1714551070167,-500.0,0.00063013,120]
[325180537,1714551070179,-501.20557834,0.00063013,120]
[325180538,1714551070190,-500.0,0.00063013,120]
[325180539,1714551070199,-888.73,0.00063013,2]
[325180540,1714551070208,-500.0,0.00063013,120]
[325180541,1714551070218,-500.0,0.00063013,120]
[325180542,1714551070227,-500.0,0.00063013,120]
[325180543,1714551070237,-500.0,0.00063013,120]
[325180544,1714551070246,-500.0,0.00063013,120]
[325180545,1714551070255,-500.0,0.00063013,120]
[325180546,1714551070264,-300.0,0.00063013,2]
[325180547,1714551070273,-500.0,0.00063013,120]
[325180548,1714551070282,-500.0,0.00063013,120]
[325180549,1714551070292,-500.0,0.00063013,120]
[325180550,1714551070301,-500.0,0.00063013,120]
[325180551,1714551070310,-500.0,0.00063013,120]
[325180552,1714551070319,-500.0,0.00063013,120]
[325180553,1714551070329,-500.0,0.00063013,120]
[325180554,1714551070338,-500.0,0.00063013,120]
[325180555,1714551070347,-500.0,0.00063013,120]
[325180556,1714551070356,-500.0,0.00063013,120]
[325180557,1714551070366,-500.0,0.00063013,120]
[325180558,1714551070375,-515.82,0.00063013,120]
[325180559,1714551070385,-500.0,0.00063013,120]
[325180560,1714551070394,-500.0,0.00063013,120]
[325180561,1714551070403,-500.0,0.00063013,3]
[325180562,1714551070412,-500.0,0.00063013,120]
[325180563,1714551070422,-500.0,0.00063013,120]
[325180564,1714551070434,-500.0,0.00063013,120]
[325180565,1714551070443,-2055.92,0.00063013,120]
[325180566,1714551070452,-500.0,0.00063013,120]
[325180567,1714551070460,-500.0,0.00063013,120]
[325180568,1714551070470,-500.0,0.00063013,120]
[325180569,1714551070479,-500.0,0.00063013,120]
[325180570,1714551070489,-500.0,0.00063013,120]
[325180571,1714551070497,-500.0,0.00063013,120]
[325180572,1714551070506,-500.0,0.00063013,120]
[325180573,1714551070515,-500.0,0.00063013,120]
[325180574,1714551070524,-500.0,0.00063013,120]
[325180575,1714551070533,-500.0,0.00063013,120]
[325180576,1714551070542,-500.0,0.00063013,120]
[325180577,1714551070551,-500.0,0.00063013,120]
[325180578,1714551070560,-500.0,0.00063013,120]
[325180579,1714551070569,-1169.21,0.00063013,120]
[325180580,1714551070580,-502.21290731,0.00063013,120]
[325180581,1714551070589,-500.0,0.00063013,120]
[325180582,1714551070598,-500.0,0.00063013,120]
[325180583,1714551070607,-500.0,0.00063013,120]
[325180584,1714551070616,-500.0,0.00063013,120]
[325180585,1714551070626,-500.0,0.00063013,120]
[325180586,1714551070635,-500.0,0.00063013,120]
[325180587,1714551070644,-500.0,0.00063013,120]
[325180588,1714551070653,-500.0,0.00063013,120]
[325180589,1714551070663,-500.0,0.00063013,120]
[325180590,1714551070672,-501.13408567,0.00063013,120]
[325180591,1714551070687,-238.00542223,0.00063013,120]
[325180592,1714551070696,-500.0,0.00063013,120]
[325180593,1714551070707,-500.0,0.00063013,120]
[325180594,1714551070716,-1562.95,0.00063013,120]
[325180595,1714551070729,-500.0,0.00063013,120]
[325180596,1714551070739,-501.60155306,0.00063013,120]
[325180597,1714551070749,-500.96041443,0.00063013,120]
[325180598,1714551070759,-500.0,0.00063013,120]
[325180599,1714551070768,-410.03210294,0.00063013,120]
[325180600,1714551070777,-500.0,0.00063013,120]
[325180601,1714551070787,-500.0,0.00063013,120]
[325180602,1714551070796,-500.0,0.00063013,120]
[325180603,1714551070808,-500.0,0.00063013,120]
[325180604,1714551070817,-500.0,0.00063013,120]
[325180605,1714551070827,-546.04072811,0.00063013,120]
[325180606,1714551070837,-555.12919259,0.00063013,120]
[325180607,1714551070847,-500.0,0.00063013,120]
[325180608,1714551070856,-500.0,0.00063013,120]
[325180609,1714551070865,-500.0,0.00063013,120]
[325180610,1714551070877,-500.0,0.00063013,120]
[325180611,1714551070887,-500.0,0.00063013,120]
[325180612,1714551070896,-500.0,0.00063013,120]
[325180613,1714551070906,-498.07397349,0.00063013,120]
[325180614,1714551070915,-500.0,0.00063013,120]
[325180615,1714551070925,-500.0,0.00063013,120]
[325180616,1714551070938,-1164.34,0.00063013,120]
[325180617,1714551070947,-500.0,0.00063013,120]
[325180618,1714551070956,-500.0,0.00063013,120]
[325180619,1714551070965,-500.0,0.00063013,120]
[325180620,1714551070974,-500.0,0.00063013,120]
[325180621,1714551070983,-1166.09,0.00063013,120]
[325180622,1714551070993,-500.0,0.00063013,120]
[325180623,1714551071002,-500.0,0.00063013,120]
[325180624,1714551071011,-500.0,0.00063013,2]
[325180625,1714551071021,-500.0,0.00063013,120]
[325180626,1714551071030,-500.0,0.00063013,120]
[325180627,1714551071039,-500.0,0.00063013,120]
[325180628,1714551071048,-557.34398302,0.00063013,120]
[325180629,1714551071057,-500.0,0.00063013,120]
[325180630,1714551071066,-500.0,0.00063013,120]
[325180631,1714551071075,-301.78688122,0.00063013,7]
[325180632,1714551071085,-500.0,0.00063013,120]
[325180633,1714551071094,-500.70258277,0.00063013,120]
[325180634,1714551071103,-490.16253665,0.00063013,120]
[325180635,1714551071113,-500.0,0.00063013,120]
[325180636,1714551071123,-639.5,0.00063013,120]
[325180637,1714551071133,-500.0,0.00063013,120]
[325180638,1714551071142,-500.0,0.00063013,120]
[325180639,1714551071151,-500.0,0.00063013,120]
[325180640,1714551071161,-562.06857897,0.00063013,120]
[325180641,1714551071171,-500.0,0.00063013,120]
[325180642,1714551071183,-500.0,0.00063013,120]
[325180643,1714551071193,-500.0,0.00063013,120]
[325180644,1714551071202,-500.0,0.00063013,120]
[325180645,1714551071212,-500.0,0.00063013,120]
[325180646,1714551071221,-500.0,0.00063013,120]
[325180647,1714551071231,-500.0,0.00063013,120]
[325180648,1714551071241,-502.95646567,0.00063013,120]
[325180649,1714551071250,-651.81,0.00063013,120]
[325180650,1714551071260,-503.62873282,0.00063013,120]
[325180651,1714551071270,-426.51965244,0.00063013,120]
[325180652,1714551071280,-500.0,0.00063013,120]
[325180653,1714551071290,-500.0,0.00063013,120]
[325180654,1714551071300,-500.0,0.00063013,120]
[325180655,1714551071309,-500.0,0.00063013,120]
[325180656,1714551071319,-500.0,0.00063013,120]
[325180657,1714551071329,-500.0,0.00063013,120]
[325180658,1714551071338,-500.0,0.00063013,120]
[325180659,1714551071347,-500.0,0.00063013,120]
[325180660,1714551071358,-180.67046333,0.00063013,120]
[325180661,1714551071367,-501.35121444,0.00063013,120]
[325180662,1714551071376,-500.0,0.00063013,120]
[325180663,1714551071386,-500.0,0.00063013,120]
[325180664,1714551071395,-500.0,0.00063013,120]
[325180665,1714551071404,-500.0,0.00063013,120]
[325180666,1714551071413,-500.0,0.00063013,120]
[325180667,1714551071423,-1908.16,0.00063013,120]
[325180668,1714551071437,-500.0,0.00063013,120]
[325180669,1714551071447,-3348.19,0.00063013,2]
[325180670,1714551071456,-500.0,0.00063013,120]
[325180671,1714551071466,-500.0,0.00063013,120]
[325180672,1714551071475,-500.0,0.00063013,120]
[325180673,1714551071484,-500.0,0.00063013,120]
[325180674,1714551071493,-500.0,0.00063013,120]
[325180675,1714551071502,-500.0,0.00063013,120]
[325180676,1714551071511,-504.81,0.00063013,120]
[325180677,1714551071520,-525.82,0.00063013,120]
[325180678,1714551071530,-500.0,0.00063013,120]
[325180679,1714551071539,-500.0,0.00063013,120]
[325180680,1714551071548,-501.03,0.00063013,120]
[325180681,1714551071557,-689.62,0.00063013,120]
[325180682,1714551071567,-500.0,0.00063013,120]
[325180683,1714551071576,-510.5,0.00063013,120]
[325180684,1714551071585,-500.0,0.00063013,120]
[325180685,1714551071595,-500.0,0.00063013,120]
[325180686,1714551071605,-500.0,0.00063013,120]
[325180687,1714551071614,-593.66,0.00063013,120]
[325180688,1714551071623,-500.0,0.00063013,120]
[325180689,1714551071633,-500.0,0.00063013,120]
[325180690,1714551071643,-500.0,0.00063013,120]
[325180691,1714551071652,-500.0,0.00063013,120]
[325180692,1714551071661,-500.0,0.00063013,120]
[325180693,1714551071671,-500.0,0.00063013,120]
[325180694,1714551071688,-500.0,0.00063013,120]
[325180695,1714551071698,-500.0,0.00063013,120]
[325180696,1714551071713,-500.0,0.00063013,120]
[325180697,1714551071722,-500.0,0.00063013,120]
[325180698,1714551071732,-500.0,0.00063013,120]
[325180699,1714551071741,-197.38624522,0.00063013,120]
[325180700,1714551071752,-2088.42,0.00063013,120]
[325180701,1714551071761,-500.0,0.00063013,120]
[325180702,1714551071862,-598.99,0.00063013,120]
[325180703,1714551071872,-500.0,0.00063013,120]
[325180704,1714551071882,-692.55,0.00063013,120]
[325180705,1714551071892,-500.0,0.00063013,120]
[325180706,1714551071901,-500.0,0.00063013,120]
[325180707,1714551071911,-500.0,0.00063013,120]
[325180708,1714551071921,-500.0,0.00063013,120]
[325180709,1714551071935,-1121.83,0.00063013,120]
[325180710,1714551071944,-1588.77,0.00063013,120]
[325180711,1714551071953,-500.0,0.00063013,120]
[325180712,1714551071961,-500.0,0.00063013,120]
[325180713,1714551071970,-500.0,0.00063013,120]
[325180714,1714551071980,-500.0,0.00063013,120]
[325180715,1714551071989,-500.0,0.00063013,120]
[325180716,1714551071998,-1507.86,0.00063013,120]
[325180717,1714551072007,-557.85,0.00063013,120]
[325180718,1714551072016,-500.0,0.00063013,120]
[325180719,1714551072026,-500.0,0.00063013,120]
[325180720,1714551072035,-500.0,0.00063013,120]
[325180721,1714551072045,-500.0,0.00063013,120]
[325180722,1714551072054,-500.0,0.00063013,120]
[325180723,1714551072064,-682.62,0.00063013,120]
[325180724,1714551072074,-500.0,0.00063013,120]
[325180725,1714551072084,-1785.66,0.00063013,120]
[325180726,1714551072093,-500.0,0.00063013,120]
[325180727,1714551072103,-500.0,0.00063013,120]
[325180728,1714551072112,-577.42,0.00063013,120]
[325180729,1714551072121,-500.0,0.00063013,120]
[325180730,1714551072130,-500.0,0.00063013,120]
[325180731,1714551072139,-952.28,0.00063013,120]
[325180732,1714551072149,-500.0,0.00063013,120]
[325180733,1714551072158,-500.0,0.00063013,120]
[325180734,1714551072167,-500.0,0.00063013,120]
[325180735,1714551072178,-500.0,0.00063013,120]
[325180736,1714551072194,-500.0,0.00063013,120]
[325180737,1714551072204,-500.0,0.00063013,120]
[325180738,1714551072213,-187.36688319,0.00063013,120]
[325180739,1714551072222,-500.0,0.00063013,120]
[325180740,1714551072231,-500.0,0.00063013,120]
[325180741,1714551072239,-500.0,0.00063013,120]
[325180742,1714551072248,-500.0,0.00063013,120]
[325180743,1714551072257,-500.0,0.00063013,120]
[325180744,1714551072266,-6250.0,0.00063013,120]
[325180745,1714551072276,-500.0,0.00063013,120]
[325180746,1714551072286,-500.0,0.00063013,120]
[325180747,1714551072296,-500.0,0.00063013,120]
[325180748,1714551072304,-193.66475377,0.00063013,120]
[325180749,1714551072314,-500.0,0.00063013,120]
[325180750,1714551072324,-3743.38,0.00063013,120]
[325180751,1714551072333,-544.46313943,0.00063013,120]
[325180752,1714551072342,-500.0,0.00063013,120]
[325180753,1714551072351,-500.0,0.00063013,120]
[325180754,1714551072361,-501.10882373,0.00063013,120]
[325180755,1714551072370,-500.0,0.00063013,120]
[325180756,1714551072380,-500.0,0.00063013,120]
[325180757,1714551072389,-500.0,0.00063013,120]
[325180758,1714551072398,-500.0,0.00063013,120]